Cogmind - Beta 13 @@@ ROGUE MODE // 2024.04.02 @ 20:21:30 Player: Cheeriohz Result: Destroyed by S-10 Pest with Light Assault Rifle Performance ------------- Evolutions (1) 500 Regions Visited (6) 1200 Robots Destroyed (64) 320 Value Destroyed (1181) 1181 Prototype IDs (0) 0 Alien Tech Used (0) 0 Bonus (0) 0 TOTAL SCORE: 3201 Bonus ------- None Cogmind --------- Core Integrity 0/400 Matter 266/300 Energy 160/160 System Corruption 0% Temperature Cool (0) Movement Treading (240) Ox1 Location -8/Mines Parts ------- > --- POWER (1) -------- Light Nuclear Core > --- PROPULSION (2) --- Improved Treads Improved Treads > --- UTILITY (4) ------ High-capacity Storage Unit Visual Processing Unit Targeting Computer Targeting Computer > --- WEAPON (2) ------- Assault Rifle > --- INVENTORY (20) --- Light Nuclear Core Improved Treads Compact Wheel High-capacity Storage Unit Large Battery (200) Large Matter Pod (150) Signal Interpreter Seismic Detector Heavy EM Pulse Gun Heavy EM Pulse Gun Maul Peak State ------------ > --- POWER ------------ Improved Ion Engine > --- PROPULSION ------- Light Treads Improved Treads > --- UTILITY ---------- Large Storage Unit Visual Processing Unit Improved Terrain Scanner Light Armor Plating > --- WEAPON ----------- Heavy Assault Rifle Heavy Assault Rifle > --- INVENTORY -------- Ion Engine Improved Treads Improved Treads Improved Treads Compact Wheel High-capacity Storage Unit Large Matter Pod Signal Interpreter Seismic Detector Targeting Computer Heavy EM Pulse Gun Heavy EM Pulse Gun Grenade Launcher Maul [Rating: 18] Favorites ----------- Power Ion Engine Engine Ion Engine Power Core Light Nuclear Core Propulsion Wheel Treads Improved Treads Leg Aluminum Leg Wheel Wheel Utility Visual Processing Unit Device Improved Terrain Scanner Storage Large Storage Unit Processor Visual Processing Unit Protection Light Armor Plating Weapon Assault Rifle Energy Gun Small Laser Ballistic Gun Assault Rifle Launcher Grenade Launcher Special Weapon Welding Torch Build | -11 -10 -10 -9 -9 -9 -8 ------- Run | Yrd Mat Min Mat Min Exi Min Slots Evolved 2 | . . . 2 . . . Power . | . . . . . . . Propulsion . | . . . . . . . Utility 2 | . . . 2 . . . Weapon . | . . . . . . . Parts Attached 57 | . 13 5 20 4 1 14 Power 6 | . 1 . 2 . . 3 Engine 5 | . 1 . 2 . . 2 Core 1 | . . . . . . 1 Reactor . | . . . . . . . Propulsion 9 | . 2 1 3 1 . 2 Treads 4 | . . . 1 1 . 2 Leg . | . . . . . . . Wheel 5 | . 2 1 2 . . . Hover . | . . . . . . . Flight . | . . . . . . . Utility 11 | . 3 . 5 1 1 1 Device 1 | . . . 1 . . . Storage 5 | . 2 . 2 . 1 . Processor 3 | . . . 1 1 . 1 Hackware . | . . . . . . . Protection 2 | . 1 . 1 . . . Artifact . | . . . . . . . Weapon 31 | . 7 4 10 2 . 8 Energy Gun 5 | . . 2 3 . . . Energy Cannon . | . . . . . . . Ballistic Gun 17 | . 4 1 5 1 . 6 Ballistic Cannon . | . . . . . . . Launcher 8 | . 3 1 1 1 . 2 Special Weapon 1 | . . . 1 . . . Impact Weapon . | . . . . . . . Slashing Weapon . | . . . . . . . Piercing Weapon . | . . . . . . . Special Melee Weapon . | . . . . . . . Unidentified Prototypes . | . . . . . . . Parts Lost 18 | . . . 6 2 . 10 Power 2 | . . . . . . 2 Propulsion 6 | . . . 3 1 . 2 Utility 3 | . . . 1 1 . 1 Weapon 7 | . . . 2 . . 5 Highest Loss Streak 4 | . . . 2 1 . 4 To Critical Strikes . | . . . . . . . Average Slot Usage (%) 94 | . 96 100 92 96 100 91 Engine 10 | . 13 14 10 11 11 8 Treads 10 | . . . 1 21 22 21 Leg 1 | . 8 . . . . . Wheel 10 | . 19 28 16 . . . Device 3 | . . . 11 3 . . Storage 12 | . 16 14 12 11 11 11 Processor 13 | . . . 10 15 22 27 Protection 7 | . 9 14 7 11 11 . Ballistic Gun 21 | . 26 16 19 21 22 19 Naked Turns . | . . . . . . . Heaviest Build 56 | 14 33 33 37 37 56 51 Greatest Support 46 | 20 26 26 20 43 43 46 Greatest Overweight (x) 10 | . 1 1 10 . 1 1 Average Overweight (x) . | . . 1 1 . . . Largest Inventory Capacity 20 | . 15 15 15 15 20 20 Average Capacity 15 | . 12 15 15 15 16 20 Most Carried 15 | . 14 15 15 15 15 14 Average Carried 12 | . 10 14 14 13 13 12 Final Capacity 20 | 8 15 15 15 15 20 20 Final Carried 15 | 6 14 15 15 13 14 11 Class Distribution -------------------- 55% | Mutant 44% | Scavenger-Mutant Dominant Class ---------------- Mutant | -10/Materials Mutant | -10/Mines Mutant | -9/Materials Scavenger-Mutant | -9/Mines Scavenger-Mutant | -9/Exiles Scavenger-Mutant | -8/Mines Resources | -11 -10 -10 -9 -9 -9 -8 ----------- Run | Yrd Mat Min Mat Min Exi Min Matter Collected 1700 | 167 117 203 681 42 . 490 Remotely . | . . . . . . . Salvage Created 1601 | . 141 208 738 53 . 461 Parts 126 | . 18 12 42 8 . 46 Haulers Intercepted 2 | . 1 . 1 . . . Recyclers Shooed 7 | . 2 1 3 . . 1 Parts Field Recycled . | . . . . . . . Retrieved Matter . | . . . . . . . Parts Self-Destructed . | . . . . . . . Prevented . | . . . . . . . Kills | -11 -10 -10 -9 -9 -9 -8 ------- Run | Yrd Mat Min Mat Min Exi Min Combat Hostiles Destroyed 41 | . 6 3 9 7 . 16 Guns 22 | . 1 . 9 3 . 9 AOE 19 | . 5 3 . 4 . 7 Classes Destroyed 12 | . 5 3 3 . . 1 Worker 4 | . 1 . . . . 3 Builder 4 | . . 1 2 . . 1 Tunneler 3 | . . 1 1 . . 1 Hauler 2 | . 1 . 1 . . . Recycler 5 | . . 2 2 . . 1 Mechanic 1 | . . . 1 . . . Operator 1 | . . . 1 . . . Watcher 3 | . 2 . 1 . . . Swarmer 23 | . 3 3 . 7 . 10 Grunt 10 | . 3 . 4 . . 3 Sentry 5 | . . . 5 . . . Hunter 3 | . . . . . . 3 Best Kill Streak 5 | . 3 4 4 4 . 5 Combat Bots Only 4 | . 2 3 3 4 . 4 Max Kills in Single Turn 3 | . 2 2 1 2 . 3 Gunslinging . | . . . . . . . Exploded 3 | . 2 2 . 2 . 3 Melee . | . . . . . . . Uniques/NPCs Destroyed . | . . . . . . . Combat | -11 -10 -10 -9 -9 -9 -8 -------- Run | Yrd Mat Min Mat Min Exi Min Hostile Shots Fired 258 | . 33 10 62 23 . 130 Missed 63 | . 7 4 15 5 . 32 Damage Taken 2539 | . 279 122 642 141 . 1355 Core 447 | . 43 . 92 49 . 263 Absorbed by Shields . | . . . . . . . Regen/Repaired (Parts) 165 | . 101 . 64 . . . Core Remaining (%) 91 | 100 . 82 . . . . Volleys Fired 169 | . 27 15 55 11 . 61 Largest 2 | . 2 2 2 2 . 2 Hottest 60 | . 40 60 46 46 . 46 Shots Fired 275 | . 40 21 96 19 . 99 Gun 243 | . 26 19 91 16 . 91 Cannon . | . . . . . . . Launcher 28 | . 14 2 1 3 . 8 Special 4 | . . . 4 . . . Kinetic 228 | . 26 8 87 16 . 91 Thermal 15 | . . 11 4 . . . Explosive 28 | . 14 2 1 3 . 8 Electromagnetic 4 | . . . 4 . . . Robot Hit Streak 18 | . 7 6 9 10 . 18 Robot Miss Streak 6 | . 6 3 3 4 . 4 Penetration Max . | . . . . . . . Secondary Targets 2 | . . . 2 . . . Max Gunslinging Chain 1 | . . . 1 . . . Shots Hit Robots 173 | . 14 14 66 7 . 72 Core Hits 98 | . 13 10 29 7 . 39 Critical Kills 1 | . . . . . . 1 Critical Parts Destroyed 1 | . . . 1 . . . Critical Strikes 2 | . . . 1 . . 1 Destroy 2 | . . . 1 . . 1 Melee Attacks . | . . . . . . . Impact . | . . . . . . . Slashing . | . . . . . . . Piercing . | . . . . . . . Sneak Attacks . | . . . . . . . Combat Hostiles . | . . . . . . . Follow-up Attacks . | . . . . . . . Damage Inflicted 3882 | . 776 324 930 402 . 1450 Guns 2105 | . 143 168 920 80 . 794 Cannons . | . . . . . . . Explosions 1750 | . 625 156 2 322 . 645 Melee . | . . . . . . . Ramming 20 | . 8 . 1 . . 11 Kinetic 1995 | . 143 77 901 80 . 794 Thermal 98 | . . 91 7 . . . Explosive 1750 | . 625 156 2 322 . 645 Electromagnetic 19 | . . . 19 . . . Impact . | . . . . . . . Slashing . | . . . . . . . Piercing . | . . . . . . . Highest Corruption . | . . . . . . . Average Corruption . | . . . . . . . Corruption Purged . | . . . . . . . Corruption Blocked . | . . . . . . . Overload Shots . | . . . . . . . Overflow Damage 91 | . 29 5 . 2 . 55 Projectiles . | . . . . . . . Explosions 91 | . 29 5 . 2 . 55 Melee . | . . . . . . . Knockbacks . | . . . . . . . Impact . | . . . . . . . Kinetic . | . . . . . . . Secondary . | . . . . . . . Self-Inflicted Damage 149 | . 36 68 . . . 45 Shots 6 | . 2 2 . . . 2 Rammed 9 | . 1 . 1 . . 7 Targets Rammed 9 | . 1 . 1 . . 7 Kicked . | . . . . . . . Crushed . | . . . . . . . Highest Temperature 27 | . 14 27 25 . . 17 Average Temperature 9 | . 7 9 9 . . 7 Received Heat Transfer 591 | . 60 33 327 . . 171 Siege Activations . | . . . . . . . Robots Corrupted . | . . . . . . . Combat Hostiles . | . . . . . . . Parts Fried . | . . . . . . . Impact Corruptions . | . . . . . . . Robots Melted . | . . . . . . . Combat Hostiles . | . . . . . . . Parts Melted . | . . . . . . . Heat Transferred 250 | . . 200 50 . . . Parts Sabotaged . | . . . . . . . Parts Stolen . | . . . . . . . Parts Stripped . | . . . . . . . Power Chain Reactions . | . . . . . . . Alert | -11 -10 -10 -9 -9 -9 -8 ------- Run | Yrd Mat Min Mat Min Exi Min Peak Influence 275 | . 275 134 226 273 . 253 Initial 78 | . . 30 52 78 . . Average 121 | . 126 97 119 227 . 100 Maximum Alert Level 1 | . 1 . 1 1 . 1 Low Security (%) 84 | . 75 100 90 37 . 91 Level 1 15 | . 24 . 9 62 . 8 Level 2 . | . . . . . . . Level 3 . | . . . . . . . Level 4 . | . . . . . . . Level 5 . | . . . . . . . High Security . | . . . . . . . Max Security . | . . . . . . . Squads Dispatched 3 | . 1 . 2 . . . Investigation 1 | . 1 . . . . . Extermination . | . . . . . . . Reinforcement 2 | . . . 2 . . . Assault . | . . . . . . . Garrison . | . . . . . . . Intercept . | . . . . . . . Searches Triggered . | . . . . . . . Construction Impeded . | . . . . . . . Haulers Reinforced . | . . . . . . . Active Scanning Responses . | . . . . . . . Cargo Convoy Interrupts . | . . . . . . . Stealth | -11 -10 -10 -9 -9 -9 -8 --------- Run | Yrd Mat Min Mat Min Exi Min Distress Signals 4 | . 1 . 3 . . . Communications Jammed . | . . . . . . . Distress Signals . | . . . . . . . Times Spotted 57 | . 9 5 16 9 . 18 Peak Tracking Total 4 | . 3 3 4 4 . 4 Tactical Retreats 3 | . 1 . 1 1 . . Traps | -11 -10 -10 -9 -9 -9 -8 ------- Run | Yrd Mat Min Mat Min Exi Min Traps Triggered 1 | . 1 . . . . . Indirectly . | . . . . . . . Trap Hack Attempts . | . . . . . . . Triggered . | . . . . . . . Disarmed . | . . . . . . . Reprogrammed . | . . . . . . . Reused . | . . . . . . . Traps Extracted . | . . . . . . . Installed . | . . . . . . . Triggered . | . . . . . . . Machines | -11 -10 -10 -9 -9 -9 -8 ---------- Run | Yrd Mat Min Mat Min Exi Min Machines Disabled 1 | . . . 1 . . . Max in Single Turn 1 | . . . 1 . . . Machines Repaired . | . . . . . . . Machines Dismantled . | . . . . . . . Machines Sabotaged . | . . . . . . . Overloaded Fab Kills . | . . . . . . . Hacking | -11 -10 -10 -9 -9 -9 -8 --------- Run | Yrd Mat Min Mat Min Exi Min Machines Accessed 9 | . 6 . 3 . . . Terminals 7 | . 5 . 2 . . . Fabricators . | . . . . . . . Repair Stations 2 | . 1 . 1 . . . Recycling Units . | . . . . . . . Scanalyzers . | . . . . . . . Garrison Access . | . . . . . . . Total Hacks 27 | . 21 . 6 . . . Successful 15 | . 12 . 3 . . . Failed 12 | . 9 . 3 . . . Catastrophic 2 | . 1 . 1 . . . Database Lockouts . | . . . . . . . Manual 19 | . 15 . 4 . . . Terminals 19 | . 15 . 4 . . . Fabricators . | . . . . . . . Repair Stations 8 | . 6 . 2 . . . Recycling Units . | . . . . . . . Scanalyzers . | . . . . . . . Garrison Access . | . . . . . . . Terminal Hacks 1 | . 1 . . . . . Terminal Index 1 | . 1 . . . . . Fabricator Hacks . | . . . . . . . Repair Station Hacks 8 | . 6 . 2 . . . Scan Component 4 | . 3 . 1 . . . Repair 4 | . 3 . 1 . . . Recycling Unit Hacks . | . . . . . . . Scanalyzer . | . . . . . . . Garrison Access Hacks . | . . . . . . . Unauthorized Hacks 6 | . 5 . 1 . . . Terminals 6 | . 5 . 1 . . . Track 1 | . 1 . . . . . Botnet 5 | . 4 . 1 . . . Fabricators . | . . . . . . . Repair Stations . | . . . . . . . Recycling Units . | . . . . . . . Scanalyzers . | . . . . . . . Garrison Access . | . . . . . . . Data Cores Recovered . | . . . . . . . Used . | . . . . . . . Hacking Detections 7 | . 5 . 2 . . . Full Trace Events . | . . . . . . . Feedback Events . | . . . . . . . Feedback Blocked . | . . . . . . . Robot Schematics Acquired . | . . . . . . . Robots Built . | . . . . . . . Authchips . | . . . . . . . Time . | . . . . . . . Total Robot Build Rating . | . . . . . . . Part Schematics Acquired . | . . . . . . . Parts Built . | . . . . . . . Authchips . | . . . . . . . Time . | . . . . . . . Total Part Build Rating . | . . . . . . . Parts Repaired 4 | . 3 . 1 . . . Time 110 | . 78 . 32 . . . Parts Recycled . | . . . . . . . Recycled Matter . | . . . . . . . Retrieved Matter . | . . . . . . . Retrieved Components . | . . . . . . . Parts Scanalyzed . | . . . . . . . Part Schematics Acquired . | . . . . . . . Parts Damaged . | . . . . . . . Bothacking | -11 -10 -10 -9 -9 -9 -8 ------------ Run | Yrd Mat Min Mat Min Exi Min Used RIF Installer . | . . . . . . . Robots Hacked . | . . . . . . . Non-combat . | . . . . . . . Combat . | . . . . . . . Robot Hacks Applied . | . . . . . . . Relay Couplers Released . | . . . . . . . Fabnet Peak Effective % . | . . . . . . . Robots Rewired . | . . . . . . . Allies Hacked . | . . . . . . . Hacks Repelled . | . . . . . . . Allies | -11 -10 -10 -9 -9 -9 -8 -------- Run | Yrd Mat Min Mat Min Exi Min Total Allies . | . . . . . . . Largest Group . | . . . . . . . Highest-Rated Group . | . . . . . . . Highest-Rated Ally . | . . . . . . . Total Orders . | . . . . . . . Ally Attacks . | . . . . . . . Total Damage . | . . . . . . . Kills . | . . . . . . . Allies Corrupted . | . . . . . . . Allies Melted . | . . . . . . . Intel | -11 -10 -10 -9 -9 -9 -8 ------- Run | Yrd Mat Min Mat Min Exi Min Robot Analysis Total . | . . . . . . . Derelict Logs Recovered . | . . . . . . . Drone Launches . | . . . . . . . Drone Recoveries . | . . . . . . . Exploration | -11 -10 -10 -9 -9 -9 -8 ------------- Run | Yrd Mat Min Mat Min Exi Min Turns Passed 2738 | . 593 183 731 162 329 740 Spaces Moved 1235 | 1 370 110 264 78 189 223 Core 1 | . . . 1 . . . Treads 492 | . . . 2 78 189 223 Legs 116 | 1 115 . . . . . Wheels 626 | . 255 110 261 . . . Hover . | . . . . . . . Flight . | . . . . . . . Fastest Speed 90 | 120 90 95 95 160 160 160 Average Speed 145 | 120 109 100 112 160 172 238 Slowest Speed 550 | 120 120 105 550 160 240 240 Overloaded Moves . | . . . . . . . Propulsion Burnouts . | . . . . . . . Robots Hopped . | . . . . . . . Cave-ins Triggered . | . . . . . . . Exploration Rate (%) 36 | 2 67 26 28 30 54 46 Regions Visited 6 Branch Regions 4 Pre-discovered Areas . | . . . . . . . Known Exits Taken . | . . . . . . . Unknown Exits Taken 6 | 1 1 1 1 1 1 . Scrap Searched . | . . . . . . . Spaces Dug 20 | . 6 . 5 . . 9 Terrain Destroyed 160 | . 68 19 5 12 . 56 Melee . | . . . . . . . Projectile . | . . . . . . . AOE 160 | . 68 19 5 12 . 56 Terrain Rammed . | . . . . . . . Walls Destroyed . | . . . . . . . Machines Disabled . | . . . . . . . Actions | -11 -10 -10 -9 -9 -9 -8 --------- Run | Yrd Mat Min Mat Min Exi Min Total 1882 | . 515 160 595 95 193 324 Wait 370 | . 85 27 243 3 . 12 Move 1229 | . 369 109 263 77 188 223 Hop . | . . . . . . . Pick Up 25 | . 13 2 4 . 2 4 Fast Attach 16 | . 4 . 9 . . 3 Attach 14 | . . . 5 2 . 7 Detach 6 | . 1 . 4 . . 1 Swap 27 | . 9 5 6 2 1 4 Drop 17 | . 6 2 5 . 2 2 Fire 169 | . 27 15 55 11 . 61 Melee . | . . . . . . . Ram 2 | . 1 . 1 . . . Kick . | . . . . . . . Crush 7 | . . . . . . 7 Escape Stasis . | . . . . . . . Rewire . | . . . . . . . Trap . | . . . . . . . Miscellaneous . | . . . . . . . Route ------- -11/Scrapyard -10/Materials (discovered 2 exits: *Mat / [*Min]) -10/Mines -9/Materials -9/Mines -9/Exiles (discovered 2 exits: [*Min x2]) -8/Mines History --------- Turn | Location | Event 1 | -11/Scrapyard | Discovered new exit (range 0) 1 | -11/Scrapyard | Entered Materials 302 | -10/Materials | Discovered new exit (range 4) 314 | -10/Materials | Build established: Mutant 369 | -10/Materials | Discovered new exit (range 12) 525 | -10/Materials | Repaired Ion Engine 552 | -10/Materials | Repaired Grenade Launcher 579 | -10/Materials | Repaired Assault Rifle 594 | -10/Materials | Entered Mines 766 | -10/Mines | Discovered new exit (range 12) 777 | -10/Mines | Entered Materials 777 | -9/Materials | Evolved 2 slots: Utility x2 1376 | -9/Materials | Repaired Imp. Ion Engine 1447 | -9/Materials | Build established: Scavenger-Mutant 1453 | -9/Materials | Discovered new exit (range 14) 1508 | -9/Materials | Entered Mines 1662 | -9/Mines | Deemed a non-threat by the Exiles lab entrance 1663 | -9/Mines | Discovered new exit (range 5) 1670 | -9/Mines | Entered Exiles 1691 | -9/Exiles | Discovered new exit (range 15) 1757 | -9/Exiles | Met 8R-AWN 1779 | -9/Exiles | Met EX-HEX 1837 | -9/Exiles | Met EX-DEC 1975 | -9/Exiles | Discovered new exit (range 11) 1999 | -9/Exiles | Entered Mines 2039 | -8/Mines | Core integrity fell below 50% 2367 | -8/Mines | Build established: Mutant 2392 | -8/Mines | Lost 4 parts (1p2n1w) 2558 | -8/Mines | Core integrity fell below 20% 2739 | -8/Mines | Destroyed by S-10 Pest with Light Assault Rifle Last Messages --------------- 02477_ U-05 Engineer lays Concrete. 02478_ U-05 Engineer builds a Wall. 02479_ U-05 Engineer lays Concrete. 02553_ G-47 Trooper destroyed. 02561_ Critical hit (Burn: +37). 02569_ Assault Rifle destroyed. 02586_ G-50 Soldier destroyed. 02589_ G-47 Trooper suffers critical hit (Destroy). 02589_ G-47 Trooper destroyed. 02591_ Acquired 54 matter. 02595_ Acquired Lgt. Nuclear Core. 02599_ K-01 Serf destroyed. 02600_ Acquired 17 matter. 02604_ Acquired 51 matter. 02611_ Acquired Lgt. Nuclear Core. 02612_ Dropped Lgt. Ion Engine. 02614_ Acquired 24 matter. 02721_ S-10 Pest destroyed. 02729_ Lgt. Assault Rifle destroyed. 02731_ S-10 Pest destroyed. Map ----- +----------------------------------------------------+ | #????????????????????????????????????????? | | ## #????????????????????????????????????????? | | ##?# #????????????????????????????????????????? | | #???# ##???????? ???????????????????????????????? | | #????###???????? ???????????????????????????????? | | #??????????????? ##?????????????????????????????? | | #??????????????? = #?????????????????????????????? | | ##?????????????? ?????????????????????????????? | | #??????????????#[! ?????????????????????????????? | | #??????????????# #?????????????????????????????? | | #??? ?????????# #?????????????????????????????? | | #??? ?????????# #?????????????????????????????? | | #??? ?????????# ##????????????????????????????? | | #??? ????????## ?????????????????????????????? | | ##??# ???????## ##????????????????????????????? | | #?## ???????## #####????????????????????????? | | #?# ??????## ?????????????????????????? | | #?# ??????# ???????????????????????????? | | ??? ??????# #????????????????????????????? | | ??? ??????## ########??????????????????????? | | ??? ??????# #??????????????????????? | | #?? ??????# #??????????????????????? | | #?? ??????# ##########[#??????????????????????? | | #?? #??????# #????????#=#??????????????????????? | | #??# #??????# ##########=#### """ ""????????????? | | #??# #??????# # ##@%s[%=""" ""????????????? | | #??# #??????# # """ #######* ?????????? | | #### ######## # """ #????????????"" ?????? | | # """ #?????????????????????????? | | ############ ### #?????????????????????????? | | #??????????# #?# """ #?????????????????????????? | | #??????????# #?#! """ #?????????????????????????? | | #??????????# #?#=[""" #?????????????????????????? | | #??????????# ###!=* #?????????????????????????? | | #??????????#= = [*% #?????????????????????????? | | #??????????#############?????????????????????????? | | ?????????????????????????????????????????????????? | | ?????????????????????????????????????????????????? | | | | | | | | | | | | | | | | | | | | | | | | | +----------------------------------------------------+ Best States ------------- Heat Dissipation 28 Energy Generation 14 Energy Capacity 265 Matter Stores 300 Matter Capacity 450 Sight Range 18 Terrain Scan Range 16 Terrain Scan Density 10 Armor Coverage 150 Evasion (%) 55 Targeting Accuracy 10 Recoil Reduction 2 Item Schematics ----------------- None Robot Schematics ------------------ None Fabricated ------------ Nothing Alien Tech Used ----------------- None Achievements -------------- None Challenges ------------ None Game ------ Seed GaussGrenadeReactor Manual? 0 Play Time 00:25:25 Cumulative 91.0 hours Start 2024.04.02 @ 19:59:43 End 2024.04.02 @ 20:21:30 Sessions 1 Manual Loads 0 Difficulty Rogue Special Mode None Game No. 86 Rogue 86 Adventurer 0 Explorer 0 Win Type - Total 2 Types 2/0/0/0/0/0/0/0/0 Lore% 40 Gallery% 59 Achievement% 42 Wizard Run 0 Options --------- Layout 1 ASCII 0 Keyboard 1 Movement Numpad Keybinds 0 Fullscreen 1 Font 32/SmallcapsGlow Map View 77x35 Zoom Use 0% Tactical HUD 1 Map Filters NONE Filters NONE Steam 1 RUN: 447859dc-55d7-422a-a8d4-4784d6fc5492